Body,Body Name,Service Label,Service Code,Expenditure Category,Expenditure Code,Narrative,Date ,Transaction Number,Amount,Capital/Revenue/Precept,Supplier Name,Supplier ID,
32UB,Boston Borough Council,Parking,3449,Professional Services,3301,CASHLESS PARKING FEES SEPT 21,1/14/2022,230081,294.67,Revenue,Chipside Ltd,10954,
32UB,Boston Borough Council,Cctv,3206,Bt Optical Line Rental,3420,29.10.21-10.09.23TERMINATION YRLY CHARGE,1/27/2022,230261,10267.37,Revenue,Bt Redcare,2020,
32UB,Boston Borough Council,Princess Royal Sports Arena,3452,Plant Maintenance,2012,CONTROL PANEL FOR BIOMASS SYSTEM,1/21/2022,230435,1968.29,Revenue,Glen Farrow Uk Ltd,12204,
32UB,Boston Borough Council,"Arts, Heritage & Tourism",3407,Publicity,3513,ADVERT-LINCOLNSHIRE TODAY NOV 21,1/14/2022,230709,275,Revenue,Business Link Magazine Group,1581,
32UB,Boston Borough Council,"Arts, Heritage & Tourism",3407,Publicity,3513,ADVERT X 2 NOTTINGHAMSHIRE ASPECT,1/14/2022,230711,300,Revenue,Nottinghamshire In Focus,11174,
32UB,Boston Borough Council,Psica,6514,Payments To Contractors,8002,HERITAGE LINCOLNSHIRE - FYDELL HOUSE,1/14/2022,230713,598.2,Capital,Wells And Son Marquees Limited,103,
32UB,Boston Borough Council,Internal Communications,2504,Data Connections,3430,EMPSN SERVICES 01.10.21-30.09.22,1/21/2022,230768,3500,Revenue,Kcom Group Plc,11400,
32UB,Boston Borough Council,Leisure Pool Services,3434,Plant Maintenance,2012,GMLC - BIOMASS FUEL FILLING PANEL WORKS,1/7/2022,230856,359.97,Revenue,D & M Barthorpe,210,
32UB,Boston Borough Council,Community Safety,3205,Community Safety Projects,3918,MUTUAL GAIN SKEGNESS CONTRIBUTION,1/21/2022,230864,1000,Revenue,Police & Crime Commissioner For Lincolnshire,1876,
32UB,Boston Borough Council,Licensing,3212,Books And Publications,3007,LEXIS LIBRARY LICENSING (2021/22),1/7/2022,230919,798,Revenue,Lexisnexis Butterworths,680,
32UB,Boston Borough Council,Refuse Collection,3234,Contract Change Notice (Psps),3327,CCN 26.08.21-04.10.21 ADDITIONAL SUPPORT,1/14/2022,230924,2096.56,Revenue,Public Sector Partnership Services Ltd,16086,
32UB,Boston Borough Council,Legal Services,1402,Shared Services,3323,LEGAL FEES OCT 21,1/7/2022,231105,1776.7,Revenue,Lincolnshire County Council,12322,
32UB,Boston Borough Council,Covid 19,3246,Miscellaneous,3905,GYM WIPES,1/21/2022,231163,2700,Revenue,Grange Europe Ltd,13920,
32UB,Boston Borough Council,Building Mtc-Public Buildings,4402,Materials,3006,ANNUAL SERVICING OF BOILERS AT PRSA,1/7/2022,231177,290,Revenue,Glen Farrow Uk Ltd,12204,
32UB,Boston Borough Council,Leisure Pool Services,3434,Biomass Fuel,2093,WOODCHIP DELIVERIES FOR GMLC,1/7/2022,231274,749.95,Revenue,Sdl Biomass Ltd,15677,
32UB,Boston Borough Council,Street Cleansing Service,3235,Specialist Services,4602,TO SPOT SPRAY THE HIGHWAY AND CAR PARKS,1/19/2022,231297,3624.84,Revenue,Mainstream Fisheries Ltd,1021,
32UB,Boston Borough Council,Municipal Buildings - Ext Org,1511,Agency Staff,1032,DWP SECURITY NOV 21,1/7/2022,231316,501.9,Revenue,National Westminister Bank Plc,13781,
32UB,Boston Borough Council,Municipal Buildings - Ext Org,1511,Agency Staff,1032,DWP SECURITY NOV 21,1/7/2022,231317,6675.8,Revenue,National Westminister Bank Plc,13781,
32UB,Boston Borough Council,Building Mtc-Public Buildings,4402,Materials,3006,TOP PANEL/FENCE BLOCK,1/7/2022,231321,2667,Revenue,Sunbelt Rentals Limited,449,
32UB,Boston Borough Council,Computer Costs,1503,Software Licences,3407,AZURE ACTIVE DIRECTORY PREMIUM P1 ,1/7/2022,231348,744.64,Revenue,Phoenix Software Ltd,644,
32UB,Boston Borough Council,Computer Costs,1503,Software Licences,3407,AZURE SUBSCRIPTION,1/7/2022,231348,1105.23,Revenue,Phoenix Software Ltd,644,
32UB,Boston Borough Council,Vehicle Holding Account,2206,Sfs Payg,3043,VK70 XZU - FIT REAR WORK,1/7/2022,231444,252.8,Revenue,Specialist Fleet Services Ltd,16163,
32UB,Boston Borough Council,Vehicle Holding Account,2206,Chris Sellars Payg,3045,MARKETS TRAILER REFURBISHMENT FLEET ,1/7/2022,231451,1478.52,Revenue,Chris Sellars Groundcare Ltd,6627,
32UB,Boston Borough Council,Welcome Back Fund,3248,Professional Services,3301,DEVELOPMENT OF A LANTERN TRAIL TO SUPPORT BOSTON,1/7/2022,231485,780,Revenue,Kathleen Smith,17269,
32UB,Boston Borough Council,Vehicle Holding Account,2206,Miscellaneous,3905,NOV 21 STEAM CLEANING,1/21/2022,231486,2145,Revenue,Peter Smith Commercials Ltd,11923,
32UB,Boston Borough Council,Personnel & Payroll,1006,Health Safety & Welfare,1110,APRIL 21 OH ADVISOR FOLLOW UPS,1/14/2022,231491,255,Revenue,Roodlane Medical Limited,10787,
32UB,Boston Borough Council,Personnel & Payroll,1006,Health Safety & Welfare,1110,MAY 21 OH ADVISOR FOLLOW UPS,1/14/2022,231492,315,Revenue,Roodlane Medical Limited,10787,
32UB,Boston Borough Council,Personnel & Payroll,1006,Health Safety & Welfare,1110,JUNE 21 OH ADVISOR FOLLOW UPS,1/14/2022,231493,390,Revenue,Roodlane Medical Limited,10787,
32UB,Boston Borough Council,Computer Costs,1503,Disaster Recovery,3429,DELL BATTERY TYPE 15 - HARDWARE -,1/7/2022,231518,864.46,Revenue,Phoenix Software Ltd,644,
32UB,Boston Borough Council,Development Management,3306,Salaries,1001,RECOVERY UNIVERSITY FEES,1/7/2022,231525,1600,Revenue,Engie,12777,
32UB,Boston Borough Council,Cctv,3206,Equipment Purchase,3001,2119 4G CCTV CAMERA + INSTALLATION + 1YR DATA,1/7/2022,231526,2312.8,Revenue,Videcom Security Limited,13418,
32UB,Boston Borough Council,Development Management,3306,Professional Services,3301,B/14/0165 INDEPENDENT VIABILITY ADVICE,1/7/2022,231528,3000,Revenue,Cp Viability Ltd,13090,
32UB,Boston Borough Council,It Investment Programme,6201,Purchases,8005,"DELL 24 MONITOR P2419H 23.8"" BLACK",1/7/2022,231530,1518.2,Capital,Specialist Computer Centres Plc,471,
32UB,Boston Borough Council,Welcome Back Fund,3248,Professional Services,3301,ERECTION OF LIGHTING AROUND THE BARGATE GREEN CAR PARK AND WIDE BARGATE ,1/7/2022,231535,1000,Revenue,Q-Lights,17222,
32UB,Boston Borough Council,Princess Royal Sports Arena,3452,Biomass Fuel,2093,WOODCHIP DELIVERIES FOR PRSA,1/14/2022,231542,900.4,Revenue,Sdl Biomass Ltd,15677,
32UB,Boston Borough Council,Commercial Waste,3237,Disposal Costs,4616,COMMERCIAL TONNAGE JULY-SEPT 21,1/7/2022,231546,31478.74,Revenue,Lincolnshire County Council,12322,
32UB,Boston Borough Council,Economic Development,3423,Transformation Project Costs,3898,SOCIAL MOBILITY TOOLKIT,1/7/2022,231552,4000,Revenue,Anthony Collins Solicitors Llp,16005,
32UB,Boston Borough Council,Office Cleaning,3203,Agency Staff,1032,CLEANERS X2,1/7/2022,231561,623.48,Revenue,Workforce (Boston) Limited,11042,
32UB,Boston Borough Council,Development Management,3306,Professional Services,3301,CONSULTANCY SERVCES -,1/7/2022,231568,257.72,Revenue,East Midlands Tree Surveys Ltd,14592,
32UB,Boston Borough Council,Municipal Buildings - Ext Org,1511,Agency Staff,1032,DWP SECURITY SERVICES SEPT 21,1/7/2022,231572,6531.93,Revenue,National Westminister Bank Plc,13781,
32UB,Boston Borough Council,Municipal Buildings - Ext Org,1511,Agency Staff,1032,DWP SECURITY SERVICES OCT 21,1/7/2022,231573,6008.22,Revenue,National Westminister Bank Plc,13781,
32UB,Boston Borough Council,Land Charges,3232,Lcc Search Fees,3984,LOCAL LAND SEARCH FEES NOV 21,1/14/2022,231696,953.12,Revenue,Lincolnshire County Council,12322,
32UB,Boston Borough Council,Commercial Waste,3237,Refuse Bin Purchase,3865,1100 LITRE PURPLE BINS,1/7/2022,231697,519,Revenue,A & C Weber Uk Ltd,11142,
32UB,Boston Borough Council,Commercial Waste,3237,Refuse Bin Purchase,3865,"1,100 LITRE GREEN BINS",1/7/2022,231697,1038,Revenue,A & C Weber Uk Ltd,11142,
32UB,Boston Borough Council,Bereavement,2401,Plant Maintenance,2012,CALLOUT TO PARTICULATE PROBE READING HIGH,1/7/2022,231700,383.75,Revenue,Matthews Environmental Solutions Limited,15719,
32UB,Boston Borough Council,Parking,3449,Maintenance Of Security Sys,2400,MAINTENANCE FOR CWT COIN ONLY TICKET MACHINES,1/7/2022,231701,11549.5,Revenue,Flowbird Smart City Uk Ltd,14367,
32UB,Boston Borough Council,Street Cleansing Service,3235,Fly Tipping Project,3325,SERVICE-O/S/F AND MIDDLE BUMPER,1/14/2022,231704,600,Revenue,Phil Haines Coaches Ltd,351,
32UB,Boston Borough Council,Vehicle Holding Account,2206,Materials,3006,"YP14 PZG W/C 01.11,08.11,15.11,22.11",1/14/2022,231710,960,Revenue,Phil Haines Coaches Ltd,351,
32UB,Boston Borough Council,Street Cleansing Service,3235,Fly Tipping Project,3325,"HIRE OF NK63 JJY W/C 01/11, 08/11, 15/11, 22/",1/14/2022,231712,500,Revenue,Phil Haines Coaches Ltd,351,
32UB,Boston Borough Council,Environmental Initiatives,3458,Environmental Education (Bbl),3039,SP-4093 60 BOXES RED HEAVY DUTY REFUSE SACKS ,1/14/2022,231714,1106.4,Revenue,Pmc Polythene Ltd,8341,
32UB,Boston Borough Council,Refuse Collection,3234,Provisions / Purchases,3008,BLACK REFUSE SACKS 457X737X965MM ON A ROLL,1/14/2022,231715,2653.2,Revenue,Pmc Polythene Ltd,8341,
32UB,Boston Borough Council,Health Activity,3415,Project Costs,3935,PLAY EQUIPMENT,1/14/2022,231716,12439.57,Revenue,Kompan,6266,
32UB,Boston Borough Council,Housing Advice & Homelessness,3241,Project Costs,3935,RENT 03.12.21-16.12.21,1/7/2022,231724,2430,Revenue,The New England Hotel,15731,
32UB,Boston Borough Council,Housing Advice & Homelessness,3241,Project Costs,3935,SECURITY 17.12.21-23.12.21,1/7/2022,231725,1176,Revenue,The New England Hotel,15731,
32UB,Boston Borough Council,Housing Advice & Homelessness,3241,Project Costs,3935,RENT 17.12.21-23.12.21,1/7/2022,231726,2940,Revenue,The New England Hotel,15731,
32UB,Boston Borough Council,Housing Advice & Homelessness,3241,Project Costs,3935,RENT 10.12.21-16.12.21,1/7/2022,231727,2940,Revenue,The New England Hotel,15731,
32UB,Boston Borough Council,Housing Advice & Homelessness,3241,Project Costs,3935,SECURITY 10.12.21-16.12.21,1/7/2022,231728,1176,Revenue,The New England Hotel,15731,
32UB,Boston Borough Council,Housing Advice & Homelessness,3241,Project Costs,3935,RENT 17.12.21-23.12.21,1/7/2022,231729,1575,Revenue,The New England Hotel,15731,
32UB,Boston Borough Council,Housing Advice & Homelessness,3241,Miscellaneous,3905,HBOP  16.12.21-27.12.21,1/7/2022,231730,523.05,Revenue,Boston Borough Council,1433,
32UB,Boston Borough Council,Office Cleaning,3203,Agency Staff,1032,CLEANERS X2,1/7/2022,231732,473.61,Revenue,Workforce (Boston) Limited,11042,
32UB,Boston Borough Council,Refuse Collection,3234,Agency Staff,1032,AGENCY W/E 26.12.21,1/14/2022,231736,3636.7,Revenue,Comensura Ltd,9671,
32UB,Boston Borough Council,Grounds Maintenance,4401,Agency Staff,1032,AGENCY W/E 26.12.21,1/14/2022,231736,1132.7,Revenue,Comensura Ltd,9671,
32UB,Boston Borough Council,Leisure Pool Services,3434,Biomass Fuel,2093,WOODCHIP GMLP,1/21/2022,231737,1056,Revenue,Sdl Biomass Ltd,15677,
32UB,Boston Borough Council,Bereavement,2401,Medical Assessors Fees,3302,MEDICAL REFEREE DUTIES DEC 21,1/7/2022,231740,1480,Revenue,Dr Andrew Doddrell,10098,
32UB,Boston Borough Council,Vehicle Holding Account,2206,Sfs Fixed Maintenance,3042,REPAIRS TO DAMAGED SUSPENSION  GK20 UYN ,1/21/2022,231743,1396.42,Revenue,Specialist Fleet Services Ltd,16163,
32UB,Boston Borough Council,Vehicle Holding Account,2206,Sfs Payg,3043,STARTER REPLACEMENT - YR16 OFC ,1/21/2022,231744,456.89,Revenue,Specialist Fleet Services Ltd,16163,
32UB,Boston Borough Council,Vehicle Holding Account,2206,Sfs Payg,3043,SERVICE/MOT - FV55 EPO ,1/21/2022,231745,390,Revenue,Specialist Fleet Services Ltd,16163,
32UB,Boston Borough Council,Vehicle Holding Account,2206,Sfs Fixed Maintenance,3042,MOT/SERVICE AND REPAIRS - VU62 HVH,1/21/2022,231746,1527.55,Revenue,Specialist Fleet Services Ltd,16163,
32UB,Boston Borough Council,Vehicle Holding Account,2206,Sfs Fixed Maintenance,3042,LT21 NDN CONTRACT MAINTENANCE VF97,1/28/2022,231748,1504.17,Revenue,Specialist Fleet Services Ltd,16163,
32UB,Boston Borough Council,Vehicle Holding Account,2206,Sfs Fixed Maintenance,3042,GK20 UYN CONTRACT MAINTENANCE VF88,1/28/2022,231748,1614.08,Revenue,Specialist Fleet Services Ltd,16163,
32UB,Boston Borough Council,Vehicle Holding Account,2206,Sfs Fixed Maintenance,3042,LS20 XDB CONTRACT MAINTENANCE VF87,1/28/2022,231748,1620.83,Revenue,Specialist Fleet Services Ltd,16163,
32UB,Boston Borough Council,Vehicle Holding Account,2206,Sfs Fixed Maintenance,3042,VK70 XZT CONTRACT MAINTENANCE VF90,1/28/2022,231748,1829.17,Revenue,Specialist Fleet Services Ltd,16163,
32UB,Boston Borough Council,Vehicle Holding Account,2206,Sfs Fixed Maintenance,3042,VK70 XZU CONTRACT MAINTENANCE VF91,1/28/2022,231748,1829.17,Revenue,Specialist Fleet Services Ltd,16163,
32UB,Boston Borough Council,Vehicle Holding Account,2206,Sfs Fixed Maintenance,3042,VK70 XZV CONTRACT MAINTENANCE VF92,1/28/2022,231748,1829.17,Revenue,Specialist Fleet Services Ltd,16163,
32UB,Boston Borough Council,Vehicle Holding Account,2206,Sfs Fixed Maintenance,3042,VK70 XZW CONTRACT MAINTENANCE VF93,1/28/2022,231748,1829.17,Revenue,Specialist Fleet Services Ltd,16163,
32UB,Boston Borough Council,Vehicle Holding Account,2206,Sfs Fixed Maintenance,3042,VK70 XZX CONTRACT MAINTENANCE VF94,1/28/2022,231748,1829.17,Revenue,Specialist Fleet Services Ltd,16163,
32UB,Boston Borough Council,Vehicle Holding Account,2206,Sfs Fixed Maintenance,3042,VK70 XZZ CONTRACT MAINTENANCE VF96,1/28/2022,231748,1829.17,Revenue,Specialist Fleet Services Ltd,16163,
32UB,Boston Borough Council,Vehicle Holding Account,2206,Sfs Fixed Maintenance,3042,VX18 KFG CONTRACT MAINTENANCE VF66,1/28/2022,231748,1829.17,Revenue,Specialist Fleet Services Ltd,16163,
32UB,Boston Borough Council,Vehicle Holding Account,2206,Sfs Fixed Maintenance,3042,VK70 XZY CONTRACT MAINTENANCE VF95,1/28/2022,231748,1829.17,Revenue,Specialist Fleet Services Ltd,16163,
32UB,Boston Borough Council,Vehicle Holding Account,2206,Sfs Fixed Maintenance,3042,H4 BBC CONTRACT MAINTENANCE VF82,1/28/2022,231748,1913.58,Revenue,Specialist Fleet Services Ltd,16163,
32UB,Boston Borough Council,Community Champions: La Fund,1019,Printing And Stationery,3201,-200 A5 FLYERS X 9 + 200 A5 FLYERS DOUBLE SIDE,1/7/2022,231752,382,Revenue,Chris Cook Print And Office Supplies,22,
32UB,Boston Borough Council,Central Training & Recruitment,2001,Training Courses,1108,RTPI - ONLINE CPD EVENT,1/14/2022,231755,498,Revenue,The Royal Town Planning Institute,1622,
32UB,Boston Borough Council,Vehicle Holding Account,2206,Materials,3006,"HIRE OF MA14 SUY W/C 06/12/21, 13/12/21, 20/1",1/14/2022,231758,680,Revenue,Phil Haines Coaches Ltd,351,
32UB,Boston Borough Council,Street Cleansing Service,3235,Water Rates,2050,20.12.21-19.12.22 STANDPIPE HIRE CHARGES,1/14/2022,231761,950,Revenue,Aquam Water Services,14157,
32UB,Boston Borough Council,Street Cleansing Service,3235,Water Rates,2050,20.12.21-19.12.22 STANDPIPE HIRE CHARGES,1/14/2022,231762,1300,Revenue,Aquam Water Services,14157,
32UB,Boston Borough Council,Housing Advice & Homelessness,3241,Dclg Homelessness Grant,3613,MAPPA CHARGES 20.21,1/28/2022,231772,3518.71,Revenue,National Offender Management Service,9279,
32UB,Boston Borough Council,Development Management,3306,Agency Staff,1032,BBC/ELDC TOWN PLANNING CONSULTANCY DEC21,1/28/2022,231834,3420,Revenue,Gd Planning,16774,
32UB,Boston Borough Council,Street Cleansing Service,3235,Specialist Services,4602,COLLECTION OF SHARPS WASTE 1100LTR BIN 01/22,1/14/2022,231835,500,Revenue,Healthguard Ltd,3406,
32UB,Boston Borough Council,Marketing And Communications,1003,Language Line,3908,09.12.21 WRITTEN TRANSLATION,1/14/2022,231837,445.9,Revenue,Pab Languages Centre,11529,
32UB,Boston Borough Council,Leisure Pool Services,3434,Professional Services,3301,FITNESS CLASSES DEC 21,1/21/2022,231838,260,Revenue,Top Banana Fitness,16459,
32UB,Boston Borough Council,Dog Collection,3219,Professional Services,3301,STRAY DOG COLLECTION SERVICE,1/14/2022,231842,1120.83,Revenue,Pestinator Uk Ltd,13043,
32UB,Boston Borough Council,Welcome Back Fund,3248,Professional Services,3301,SAMBA BAND PERFORMANCES,1/14/2022,231843,800,Revenue,Chris Lewis-Jones,17217,
32UB,Boston Borough Council,"Arts, Heritage & Tourism",3407,Publicity,3513,1/2 PAGE ADVERTS X 3 - GUILDHALL,1/14/2022,231845,450,Revenue,Nottinghamshire In Focus,11174,
32UB,Boston Borough Council,Grants General,3455,Voluntary Org Grants,3602,CORE GRANT Q4 2021/22,1/28/2022,231848,7750,Revenue,Lincolnshire Cvs,12071,
32UB,Boston Borough Council,Refuse Collection,3234,Agency Staff,1032,SUPPLY OF TEMPORARY STAFF,1/14/2022,231852,4625,Revenue,Comensura Ltd,9671,
32UB,Boston Borough Council,Grounds Maintenance,4401,Agency Staff,1032,SUPPLY OF TEMPORARY STAFF,1/14/2022,231852,1221.79,Revenue,Comensura Ltd,9671,
32UB,Boston Borough Council,Marketing And Communications,1003,Language Line,3908,14.12.21 - WRITTEN TRANSLATION,1/14/2022,231855,1400,Revenue,Pab Languages Centre,11529,
32UB,Boston Borough Council,Psica,6514,Payments To Contractors,8002,"TRAVEL, SAND & LOIME, PRESENTATION",1/14/2022,231861,754.2,Capital,Cameron Barr,17321,
32UB,Boston Borough Council,Psica,6514,Payments To Contractors,8002,20.11.21 DEMONSTRATING STONE CARVING,1/14/2022,231862,360,Capital,Jane Cowan,17322,
32UB,Boston Borough Council,Parking,3449,Materials,3006,CALE MP104 POP PAPER STUBS,1/14/2022,231871,851.4,Revenue,Paperwork (Uk) Limited,728,
32UB,Boston Borough Council,Building Mtc-Public Buildings,4402,Materials,3006,HUSSEY TOWER Q/E 31.12.21,1/28/2022,231872,1056.1,Revenue,Heritage Trust Of Lincolnshire Ltd,660,
32UB,Boston Borough Council,Vehicle Holding Account,2206,Tyres,2208,TYRE MAINTENANCE CONTRACT JANUARY 2022,1/14/2022,231891,2674.71,Revenue,B A Bush & Son Ltd,12196,
32UB,Boston Borough Council,Central Training & Recruitment,2001,Training Courses,1108,ONLINE PLUS CPD TRAINING,1/14/2022,231893,390,Revenue,Abc Food Law Limited,11856,
32UB,Boston Borough Council,Office Cleaning,3203,Agency Staff,1032,CLEANERS X2,1/14/2022,231905,479.61,Revenue,Workforce (Boston) Limited,11042,
32UB,Boston Borough Council,Disabled Facilities Grants,6401,Payments To Contractors,8002,CARRYOUT PRPOSED DFG WORKS,1/14/2022,231908,260,Capital,R.G. Carter Building Limited,1146,
32UB,Boston Borough Council,Housing Advice & Homelessness,3241,Project Costs,3935,RENT 24.12.21-30.12.21,1/14/2022,231909,1575,Revenue,The New England Hotel,15731,
32UB,Boston Borough Council,Housing Advice & Homelessness,3241,Project Costs,3935,RENT 24.12.21-30.12.21,1/14/2022,231910,2940,Revenue,The New England Hotel,15731,
32UB,Boston Borough Council,Housing Advice & Homelessness,3241,Project Costs,3935,SECURITY 24.12.21-30.12.21,1/14/2022,231911,1176,Revenue,The New England Hotel,15731,
32UB,Boston Borough Council,Housing Advice & Homelessness,3241,Project Costs,3935,SECURITY 31.12.21-06.01.22,1/14/2022,231912,1176,Revenue,The New England Hotel,15731,
32UB,Boston Borough Council,Housing Advice & Homelessness,3241,Project Costs,3935,RENT 31.12.21-06.01.22,1/14/2022,231913,2940,Revenue,The New England Hotel,15731,
32UB,Boston Borough Council,Housing Advice & Homelessness,3241,Project Costs,3935,RENT 31.12.21-06.01.22,1/14/2022,231914,1575,Revenue,The New England Hotel,15731,
32UB,Boston Borough Council,Corporate & Democratic Core,3102,External Audit Fees,3504,EXTERNAL AUDIT 21-22 INSTALMENT 1 OF 4,1/14/2022,231919,8490,Revenue,Mazars Llp,13918,
32UB,Boston Borough Council,Building Mtc-Public Buildings,4402,Materials,3006,EMERGENCY ATTENDANCE TO COLUMN HIT BY VAN,1/14/2022,231920,280,Revenue,Eon Uk Energy Services,8014,
32UB,Boston Borough Council,Building Mtc-Public Buildings,4402,Materials,3006,RENTAL RENEWAL,1/14/2022,231922,1298.44,Revenue,Cooleraid Ltd,7843,
32UB,Boston Borough Council,Building Mtc-Public Buildings,4402,Materials,3006,INSTALL NAME PLATES AS REQUESTED,1/14/2022,231923,1086,Revenue,C G Godfrey Ltd,6040,
32UB,Boston Borough Council,Building Mtc-Public Buildings,4402,Materials,3006,REPLACED 3 & RUSTED OLD BRACKETS,1/14/2022,231924,2025,Revenue,Eon Uk Energy Services,8014,
32UB,Boston Borough Council,Personnel & Payroll,1006,Health Safety & Welfare,1110,OCCUPATIONAL HEALTH 01.12.21-16.12.21,1/21/2022,231926,270,Revenue,Roodlane Medical Limited,10787,
32UB,Boston Borough Council,Personnel & Payroll,1006,Health Safety & Welfare,1110,OCCUPATIONAL HEALTH 03.08.21,1/21/2022,231927,260,Revenue,Roodlane Medical Limited,10787,
32UB,Boston Borough Council,Personnel & Payroll,1006,Health Safety & Welfare,1110,OCCUPATIONAL HEALTH 02.09.21-17.09.21,1/21/2022,231928,300,Revenue,Roodlane Medical Limited,10787,
32UB,Boston Borough Council,Building Mtc-Public Buildings,4402,Materials,3006,GUILDHALL MAIN DOORS CALLOUT,1/28/2022,232009,254.41,Revenue,Clymac Limited,6768,
32UB,Boston Borough Council,Refuse Collection,3234,Agency Staff,1032,TEMP. STAFF W/E 09.01.22,1/21/2022,232030,3830.73,Revenue,Comensura Ltd,9671,
32UB,Boston Borough Council,Grounds Maintenance,4401,Agency Staff,1032,TEMP. STAFF W/E 09.01.22,1/21/2022,232030,850.3,Revenue,Comensura Ltd,9671,
32UB,Boston Borough Council,Community Safety,3205,Community Safety Projects,3918,MUTAL GAIN SUTTON BRIDGE CONTRIBUTION,1/28/2022,232031,1000,Revenue,Police & Crime Commissioner For Lincolnshire,1876,
32UB,Boston Borough Council,Leisure Pool Services,3434,Biomass Fuel,2093,REFUSED DELIVERY CHARGE 12/01/22,1/28/2022,232034,300,Revenue,Sdl Biomass Ltd,15677,
32UB,Boston Borough Council,Leisure Pool Services,3434,Equipment Purchase,3001,14X MOTOROLA XT460 HANDPORTABLE,1/21/2022,232035,1279.86,Revenue,Direct Communications Radio Services Ltd,13260,
32UB,Boston Borough Council,Leisure Pool Services,3434,Rental Of Phone System,3418,FIBRESTREAM RENTAL,1/21/2022,232039,368,Revenue,Multidata Ltd,12625,
32UB,Boston Borough Council,Towns Fund - Pe21,3426,Professional Services,3301,TOWNS FUND SUPPORT UP TO 31ST MARCH 2022,1/28/2022,232043,990,Revenue,Rose Regeneration Limited,14694,
32UB,Boston Borough Council,Princess Royal Sports Arena,3452,Biomass Fuel,2093,ATTEMPTED DELIVERY PRSA 13/1/22,1/28/2022,232051,300,Revenue,Sdl Biomass Ltd,15677,
32UB,Boston Borough Council,Central Purchasing,1010,Corporate Publications,3202,HALF PAGE ADVERT FOR CHRISTMAS BIN COLLECTION,1/21/2022,232068,294,Revenue,Reach Publishing Services Ltd,13991,
32UB,Boston Borough Council,Economic Development,3423,Professional Services,3301,TO PROVIDE AN UPDATED BOSTON MAP,1/21/2022,232071,290,Revenue,J W Ruddock And Sons Limited,16808,
32UB,Boston Borough Council,Office Cleaning,3203,Agency Staff,1032,CLEANER X 2,1/28/2022,232081,623.48,Revenue,Workforce (Boston) Limited,11042,
32UB,Boston Borough Council,Personnel & Payroll,1006,Health Safety & Welfare,1110,AUG 21 - PLACEMENT MEDICAL PAPER SCREEN,1/21/2022,232083,300,Revenue,Roodlane Medical Limited,10787,
32UB,Boston Borough Council,Vehicle Holding Account,2206,Miscellaneous,3905,STEAM CLEAN - DEC 21,1/21/2022,232086,2490,Revenue,Peter Smith Commercials Ltd,11923,
32UB,Boston Borough Council,Vehicle Holding Account,2206,Sfs Payg,3043,01.01.22-31.12.22 INSURANCE RENEWAL,1/28/2022,232091,4840,Revenue,Specialist Fleet Services Ltd,16163,
32UB,Boston Borough Council,Finance,1502,Procurement S/S Agreement,3800,PROCUREMENT SERVICES OCT-DEC 21,1/21/2022,232092,4876.18,Revenue,Borough Council Of Kings Lynn & West Norfolk,1011,
32UB,Boston Borough Council,Leisure Pool Services,3434,Water Rates,2050,27.11.21-26.12.21 ROWLEY ROAD,1/21/2022,232095,823.78,Revenue,Wave,13339,
32UB,Boston Borough Council,Computer Costs,1503,Contract Change Notice (Psps),3327,CCN - SOCITM PROPOSAL FOR ICT REPORT,1/28/2022,232096,13350,Revenue,Public Sector Partnership Services Ltd,16086,
32UB,Boston Borough Council,Non Distributed Costs,3502,Superann Pension Incrs Act,1007,PENSION ADDED YEARS DECEMBER 21,1/21/2022,232099,5694.37,Revenue,Lincolnshire County Council Pension Fund,220,
32UB,Boston Borough Council,Housing Advice & Homelessness,3241,Project Costs,3935,05.01.22-13.01.22 RENT,1/21/2022,232100,1215,Revenue,The New England Hotel,15731,
32UB,Boston Borough Council,Housing Advice & Homelessness,3241,Project Costs,3935,07.01.22-13.01.22 RENT,1/21/2022,232101,1575,Revenue,The New England Hotel,15731,
32UB,Boston Borough Council,Housing Advice & Homelessness,3241,Project Costs,3935,12 ROOMS WIDE BARGATE 07.01.22-13.01.22,1/21/2022,232102,2940,Revenue,The New England Hotel,15731,
32UB,Boston Borough Council,Housing Advice & Homelessness,3241,Project Costs,3935,SECURITY 07.01.22-13.01.22,1/21/2022,232103,1176,Revenue,The New England Hotel,15731,
32UB,Boston Borough Council,Vehicle Holding Account,2206,Materials,3006,VX71 WRE - RCV HIRE 26.11.21-02.12.21,1/28/2022,232104,1150,Revenue,Euro Municipal Ltd,13250,
32UB,Boston Borough Council,Central Training & Recruitment,2001,Training Courses,1108,SEQ LEVEL 1 SWIMMING ASSISTANT,1/28/2022,232105,395,Revenue,Institute Of Swimming,12482,
32UB,Boston Borough Council,Welcome Back Fund,3248,Publicity,3513,CORNER POSITION DISPLAY ADVERT IN LINCOLNSHIRE,1/21/2022,232109,264,Revenue,Business Link Magazine Group,1581,
32UB,Boston Borough Council,Economic Development,3423,Project Costs,3935,"DESIGN AND PRODUCE A MAP OF SE LINCS,",1/21/2022,232112,450,Revenue,Lovell Johns Ltd,16973,
32UB,Boston Borough Council,Computer Costs,1503,Software Licences,3407,MICROSOFT SUB 15.12.21-14.01.22,1/28/2022,232113,1828.37,Revenue,Phoenix Software Ltd,644,
32UB,Boston Borough Council,Refuse Collection,3234,Agency Staff,1032,TEMP. STAFF W/E 16.01.22,1/28/2022,232195,3983.26,Revenue,Comensura Ltd,9671,
32UB,Boston Borough Council,Grounds Maintenance,4401,Agency Staff,1032,TEMP. STAFF W/E 16.01.22,1/28/2022,232195,1475.08,Revenue,Comensura Ltd,9671,
32UB,Boston Borough Council,Community Testing Centre,3516,Overtime Payments,1022,STAFF & MILEAGE COVID TEST CNTR NOV 2021,1/28/2022,232199,693.2,Revenue,Magna Vitae Leisure Trust,13539,
32UB,Boston Borough Council,Psica,6514,Payments To Contractors,8002,HERITAGE EVENT 8:00AM-5:30PM,1/28/2022,232216,496.33,Capital,Mrs S M Hirst,14285,
32UB,Boston Borough Council,Computer Costs,1503,Peripherals & Consumables,3427,MICROSOFT LIFECHAT LX-3000 - NEW PACKAGING,1/28/2022,232236,289.7,Revenue,Exampleit,17195,
32UB,Boston Borough Council,Computer Costs,1503,Peripherals & Consumables,3427,DELL 450-AGOD POWER ADAPTER/INVERTOR INDOOR,1/28/2022,232236,594.3,Revenue,Exampleit,17195,
32UB,Boston Borough Council,Computer Costs,1503,Peripherals & Consumables,3427,2MTR HDMI A MALE A MALE,1/28/2022,232236,1032,Revenue,Exampleit,17195,
32UB,Boston Borough Council,Community Champions: La Fund,1019,Language Line,3908,TRANSLATION COSTS FOR PROJECT,1/28/2022,232240,500,Revenue,Pab Languages Centre,11529,
32UB,Boston Borough Council,Marketing And Communications,1003,Language Line,3908,TELEPHONE INTERPRETING 01.12.21-30.12.21,1/28/2022,232247,508.72,Revenue,Thebigword,7256,
32UB,Boston Borough Council,Internal Communications,2504,Rental Of Phone System,3418,RECURRING CHARGES DEC 2021 - VP 79824270,1/4/2022,72825,301.1,Revenue,BT plc,,
32UB,Boston Borough Council,Bereavement,2401,Gas,2022,GAS - CREM - NOV 2021,1/14/2022,72907,1444.54,Revenue,ESPO,,
32UB,Boston Borough Council,Municipal Buildings,2404,Gas,2022,GAS - MUNICIPAL BUILDINGS - NOV 2021,1/14/2022,72907,635.32,Revenue,ESPO,,
32UB,Boston Borough Council,"Arts, Heritage & Tourism",3407,Gas,2022,GAS - GUILDHALL - NOV 2021,1/14/2022,72907,566.26,Revenue,ESPO,,
32UB,Boston Borough Council,Leisure Pool Services,3434,Gas,2022,GAS - GMLC - NOV 2021,1/14/2022,72907,4242.11,Revenue,ESPO,,
32UB,Boston Borough Council,Hackney Carriage Licences,3233,Hackney Carriges Expenses,3521,LAND CHARGES -9 CHECKS ,1/17/2022,72937,360,Revenue,DBS,,
32UB,Boston Borough Council,Local Restriction Support,1015,Arg Scheme,4016,PP VISIT LINCOLN,1/17/2022,72938,100000,Revenue,Visit Lincoln Cic,,
32UB,Boston Borough Council,Nndr Control Account,5103,Central Government Share,7264,BRR CENTRAL SHARE 2021/22,1/19/2022,72943,820289,Precept,DCLG,,
32UB,Boston Borough Council,Nndr,9006,Business Rates Retention,4006,LINCS CC DD RE BR TARIFFS 2021/22,1/19/2022,72979,411257,Precept,Lincolnshire County Council,,
32UB,Boston Borough Council,Corporate & Democratic Core,3102,Bank Charges,3510,BOTTOMLINE MONTHLY AGREEMENT RE BACS,1/20/2022,72980,671,Revenue,Bottomline Technologies,,
32UB,Boston Borough Council,Municipal Buildings,2404,Electricity,2021,GAS -   MB ACC 3004800128 01.12.21-31.12.21,1/21/2022,73001,1194.25,Revenue,Total Gas & Power,,
32UB,Boston Borough Council,Municipal Buildings,2404,Electricity,2021,GAS -   MB ACC 3005069232 01.12.21-31.12.21,1/21/2022,73001,3630.92,Revenue,Total Gas & Power,,
32UB,Boston Borough Council,Depot,2405,Electricity,2021,GAS -ST JOHNS RD  01.12.21-31.12.21,1/21/2022,73001,654.24,Revenue,Total Gas & Power,,
32UB,Boston Borough Council,Redstone Caravan Site,3225,Electricity,2021,GAS -   TRAVELLERS SITE REDSTONE 01.12.21-31.12.21,1/21/2022,73001,4481.66,Revenue,Total Gas & Power,,
32UB,Boston Borough Council,Leisure Pool Services,3434,Electricity,2021,GAS -   GMLC 01.12.21-31.12.21,1/21/2022,73001,6377.94,Revenue,Total Gas & Power,,
32UB,Boston Borough Council,Footway Lighting & Mtc,3447,Electricity,2021,GAS -FOOTWAY LIGHTING  01.12.21-31.12.21,1/21/2022,73001,3935.37,Revenue,Total Gas & Power,,
32UB,Boston Borough Council,Parking,3449,Electricity,2021,GAS -  CAR PARK LIGHTING TICKET MACHINES 01.12.21-31.12.21,1/21/2022,73001,808.03,Revenue,Total Gas & Power,,
32UB,Boston Borough Council,Princess Royal Sports Arena,3452,Electricity,2021,GAS - PRSA 01.12.21-31.12.21,1/21/2022,73001,8432.33,Revenue,Total Gas & Power,,
32UB,Boston Borough Council,Vehicle Holding Account,2206,Fuel Transport,2201,FUEL TO 9/1/22,1/25/2022,73022,576.49,Revenue,Fuelcard Services,,
32UB,Boston Borough Council,Vehicle Holding Account,2206,Fuel Transport,2201,FUEL TO 9/1,1/25/2022,73023,3277.68,Revenue,Fuelcard Services,,
32UB,Boston Borough Council,Corporate & Democratic Core,3102,Bank Charges,3510,ACADEMY MANAGED SERVICES - CAPITA DD,1/26/2022,73025,4258.74,Revenue,Capita Software Services,,
32UB,Boston Borough Council,Internal Communications,2504,Rental Of Phone System,3418,FOEHN DD'S -,1/26/2022,73026,2351.52,Revenue,Foehn,,
32UB,Boston Borough Council,Credit Control Unit,1013,Postages,3405,IMAIL - BOSTON SUMMONS - 06.12.21-10.12.21,1/10/2022,73036,1493.53,Revenue,UK Mail,,
32UB,Boston Borough Council,Credit Control Unit,1013,Postages,3405,IMAIL - BOSTON REMINDERS - 13.12.21-17.12.21,1/10/2022,73038,719.49,Revenue,UK Mail,,
32UB,Boston Borough Council,Council Tax Summary Account,5000,Ct Requirement Lcc,7801,LCC ADDITIONAL PRECEPT,1/28/2022,73061,100522.6,Precept,Lincolnshire County Council,,
32UB,Boston Borough Council,Council Tax Summary Account,5000,Ct Requirement Lpa,7802,LINCS POLICE PRECEPT,1/28/2022,73061,526213.99,Precept,Lincs Police,,
32UB,Boston Borough Council,Council Tax Summary Account,5000,Ct Requirement Lcc,7801,LCC PRECEPT,1/28/2022,73061,2696234.93,Precept,Lincolnshire County Council,,
32UB,Boston Borough Council,Nndr Control Account,5103,Lincs County Council Share,7266,LCC NNDR SHARE,1/28/2022,73061,112975.4,Precept,Lincolnshire County Council,,
32UB,Boston Borough Council,Legal Services,1402,Subscriptions,3600,LEXIS NEXIS DD - REFERENCE DI055369M,1/31/2022,73064,795.83,Revenue,Lexisnexis Butterworths,,
32UB,Boston Borough Council,Vehicle Holding Account,2206,Fuel Transport,2201,FUEL TO 16/1,1/31/2022,73110,334.8,Revenue,Fuelcard Services,,
32UB,Boston Borough Council,Vehicle Holding Account,2206,Fuel Transport,2201,FUEL TO 16/1,1/31/2022,73111,3621.42,Revenue,Fuelcard Services,,
32UB,Boston Borough Council,Vehicle Holding Account,2206,Fuel Transport,2201,FUEL TO 23/1,1/31/2022,73124,558.26,Revenue,Fuelcard Services,,
32UB,Boston Borough Council,Vehicle Holding Account,2206,Fuel Transport,2201,FUEL TO 23/1,1/31/2022,73127,3604.3,Revenue,Fuelcard Services,,
32UB,Boston Borough Council,Vehicle Holding Account,2206,Fuel Transport,2201,FUEL TO 31/1,1/31/2022,73128,370.18,Revenue,Fuelcard Services,,
32UB,Boston Borough Council,Vehicle Holding Account,2206,Fuel Transport,2201,FUEL TO 31/1,1/31/2022,73129,5175.04,Revenue,Fuelcard Services,,
32UB,Boston Borough Council,Community Champions: La Fund,1019,Project Costs,3935,EHC PROG BOSTON HERO PRIZES,1/18/2022,73342,382.93,Revenue,,
32UB,Boston Borough Council,Computer Costs,1503,Software Licences,3407,WEBSITE,1/18/2022,73342,404.03,Revenue,,
32UB,Boston Borough Council,Central Training & Recruitment,2001,Training Courses,1108,WEBSITE,1/18/2022,73342,453.55,Revenue,,
32UB,Boston Borough Council,Vehicle Holding Account,2206,Materials,3006,TAX VK70 XZU,1/18/2022,73342,302.5,Revenue,DVLA,,
32UB,Boston Borough Council,Vehicle Holding Account,2206,Materials,3006,TAX VK70 XZV,1/18/2022,73342,302.5,Revenue,DVLA,,
32UB,Boston Borough Council,Vehicle Holding Account,2206,Materials,3006,TAX VK70 XZW,1/18/2022,73342,302.5,Revenue,DVLA,,
32UB,Boston Borough Council,Vehicle Holding Account,2206,Materials,3006,TAX VK70 XZX,1/18/2022,73342,302.5,Revenue,DVLA,,
32UB,Boston Borough Council,Vehicle Holding Account,2206,Materials,3006,TAX VK70 XZY,1/18/2022,73342,302.5,Revenue,DVLA,,
32UB,Boston Borough Council,Vehicle Holding Account,2206,Materials,3006,TAX VK70XZZ,1/18/2022,73342,302.5,Revenue,DVLA,,
32UB,Boston Borough Council,Vehicle Holding Account,2206,Materials,3006,VK70 XZT TAX,1/18/2022,73342,302.5,Revenue,DVLA,,
32UB,Boston Borough Council,Vehicle Holding Account,2206,Materials,3006,"PROPOLE AND WIPE AND SANITISER, KEY RINGS LICENSE HOLDER",1/18/2022,73342,411,Revenue,,
32UB,Boston Borough Council,Vehicle Holding Account,2206,Fuel Transport,2201,DIESEL VX18 KFG,1/18/2022,73342,624.3,Revenue,,
32UB,Boston Borough Council,Pool Cars,2209,Mot Tests,2204,AA COVER FOR POOL CARS,1/18/2022,73342,333.33,Revenue,,
32UB,Boston Borough Council,Corporate & Democratic Core,3102,Miscellaneous,3905,CUSTOMS DUTY ON DELIVERY,1/18/2022,73342,283.16,Revenue,,
32UB,Boston Borough Council,Refuse Collection,3234,Clothing,3150,"SWEATSHIRTS, TROUSERS",1/18/2022,73342,497.98,Revenue,,
32UB,Boston Borough Council,Refuse Collection,3234,Clothing,3150,"SWEATSHIRTS, GLOVES, TROUSERS, COATS, SHORTS",1/18/2022,73342,697.83,Revenue,,
32UB,Boston Borough Council,"Arts, Heritage & Tourism",3407,Publicity,3513,WEDDING FEATURE,1/18/2022,73342,279,Revenue,,
32UB,Boston Borough Council,Markets,3424,Clothing,3150,"COAT, SWEATSHIRTS, TROUSERS, BOOTS",1/18/2022,73342,762.8,Revenue,,
32UB,Boston Borough Council,Community Testing Centre,3516,Equipment Purchase,3001,VAN HIRE,1/18/2022,73342,466.67,Revenue,,
32UB,Boston Borough Council,Building Mtc-Public Buildings,4402,Materials,3006,HAMMERITE PAINT,1/18/2022,73342,289.71,Revenue,,
32UB,Boston Borough Council,Building Mtc-Public Buildings,4402,Materials,3006,RADAR LOCKS,1/18/2022,73342,348.99,Revenue,,
